[Event "Titled Tuesday Blitz April 26 Late 2022"]
[White "Dobre, Claudiu-Cristian"]
[Black "Sanal, Vahap"]
[WhiteFideId "1211854"]
[BlackFideId "6300545"]
[WhiteElo "2207"]
[BlackElo "2603"]
[Result "0-1"]
[Round "01"]
[TimeControl "180+1"]
[Date "2022.04.26"]
[WhiteClock "0:00:02"]
[BlackClock "0:01:44"]

1. c4 {[%clk 0:03:00]}  d6 {[%clk 0:02:57]} 2. Nc3 {[%clk 0:02:58]}  e5 {[%clk 0:02:57]} 3. d4 {[%clk 0:02:58]}  exd4 {[%clk 0:02:57]} 4. Qxd4 {[%clk 0:02:58]}  Nc6 {[%clk 0:02:58]} 5. Qd2 {[%clk 0:02:58]}  Nf6 {[%clk 0:02:57]} 6. g3 {[%clk 0:02:57]}  Be6 {[%clk 0:02:57]} 7. b3 {[%clk 0:02:56]}  d5 {[%clk 0:02:57]} 8. cxd5 {[%clk 0:02:05]}  Nxd5 {[%clk 0:02:57]} 9. Bb2 {[%clk 0:01:51]}  Bb4 {[%clk 0:02:54]} 10. Bg2 {[%clk 0:01:50]}  Qf6 {[%clk 0:02:51]} 11. Bxd5 {[%clk 0:00:45]}  Bxd5 {[%clk 0:02:50]} 12. Qe3+ {[%clk 0:00:45]}  Qe7 {[%clk 0:02:17]} 13. Qxe7+ {[%clk 0:00:41]}  Kxe7 {[%clk 0:02:18]} 14. Nf3 {[%clk 0:00:41]}  Bxf3 {[%clk 0:02:11]} 15. exf3 {[%clk 0:00:41]}  Rhd8 {[%clk 0:02:07]} 16. a3 {[%clk 0:00:19]}  Bxc3+ {[%clk 0:02:04]} 17. Bxc3 {[%clk 0:00:18]}  Rd3 {[%clk 0:02:05]} 18. Rc1 {[%clk 0:00:18]}  Rxf3 {[%clk 0:01:55]} 19. Ke2 {[%clk 0:00:18]}  Rf5 {[%clk 0:01:56]} 20. Bxg7 {[%clk 0:00:18]}  f6 {[%clk 0:01:55]} 21. Rhd1 {[%clk 0:00:17]}  Rh5 {[%clk 0:01:51]} 22. b4 {[%clk 0:00:07]}  Rg8 {[%clk 0:01:48]} 23. Bxf6+ {[%clk 0:00:04]}  Kxf6 {[%clk 0:01:48]} 24. Rd7 {[%clk 0:00:04]}  Rg7 {[%clk 0:01:47]} 25. Rxg7 {[%clk 0:00:02]}  Kxg7 {[%clk 0:01:48]} 26. h4 {[%clk 0:00:02]}  Re5+ {[%clk 0:01:48]} 27. Kf3 {[%clk 0:00:02]}  Nd4+ {[%clk 0:01:46]} 28. Kg4 {[%clk 0:00:02]}  h5+ {[%clk 0:01:45]} 29. Kh3 {[%clk 0:00:02]}  c6 {[%clk 0:01:45]} 30. f4 {[%clk 0:00:02]}  Re3 {[%clk 0:01:45]} 31. Rd1 {[%clk 0:00:02]}  Nf5 {[%clk 0:01:44]} 0-1


[Site "https://www.chess.com"]

[Event "Titled Tuesday Blitz April 26 Late 2022"]
[White "Domingo Nunez, Alejandro"]
[Black "Kaganskiy, Gleb"]
[WhiteFideId "22245561"]
[BlackFideId "4132025"]
[WhiteElo "2215"]
[BlackElo "2165"]
[Result "0-1"]
[Round "01"]
[TimeControl "180+1"]
[Date "2022.04.26"]
[WhiteClock "0:00:05"]
[BlackClock "0:00:01"]

1. Nf3 {[%clk 0:02:50]}  d5 {[%clk 0:02:58]} 2. b3 {[%clk 0:02:49]}  Nf6 {[%clk 0:02:51]} 3. Bb2 {[%clk 0:02:50]}  Bf5 {[%clk 0:02:44]} 4. c4 {[%clk 0:02:49]}  e6 {[%clk 0:02:43]} 5. h3 {[%clk 0:02:48]}  h6 {[%clk 0:02:42]} 6. g4 {[%clk 0:02:48]}  Bh7 {[%clk 0:02:40]} 7. Bg2 {[%clk 0:02:48]}  c6 {[%clk 0:02:39]} 8. d3 {[%clk 0:02:45]}  Be7 {[%clk 0:02:32]} 9. Nbd2 {[%clk 0:02:35]}  O-O {[%clk 0:02:31]} 10. Qc2 {[%clk 0:02:35]}  Nbd7 {[%clk 0:02:30]} 11. O-O {[%clk 0:02:35]}  Rc8 {[%clk 0:02:28]} 12. Rad1 {[%clk 0:02:34]}  b5 {[%clk 0:02:26]} 13. Qc1 {[%clk 0:02:34]}  bxc4 {[%clk 0:02:23]} 14. dxc4 {[%clk 0:02:35]}  Nc5 {[%clk 0:02:19]} 15. Ne5 {[%clk 0:02:33]}  Nce4 {[%clk 0:02:15]} 16. Nxe4 {[%clk 0:02:22]}  Nxe4 {[%clk 0:02:11]} 17. Qa1 {[%clk 0:01:57]}  Bf6 {[%clk 0:02:10]} 18. Nd3 {[%clk 0:01:52]}  Bxb2 {[%clk 0:02:03]} 19. Qxb2 {[%clk 0:01:53]}  Qh4 {[%clk 0:01:55]} 20. Qd4 {[%clk 0:01:48]}  Ng5 {[%clk 0:01:49]} 21. Qe3 {[%clk 0:01:36]}  Be4 {[%clk 0:01:42]} 22. f3 {[%clk 0:01:25]}  Nxh3+ {[%clk 0:01:33]} 23. Bxh3 {[%clk 0:01:25]}  Qxh3 {[%clk 0:01:30]} 24. Nf4 {[%clk 0:00:31]}  Qg3+ {[%clk 0:01:23]} 25. Ng2 {[%clk 0:00:29]}  Bg6 {[%clk 0:01:16]} 26. Rd2 {[%clk 0:00:29]}  a5 {[%clk 0:01:02]} 27. Qc5 {[%clk 0:00:28]}  a4 {[%clk 0:00:54]} 28. bxa4 {[%clk 0:00:26]}  h5 {[%clk 0:00:52]} 29. gxh5 {[%clk 0:00:20]}  Bxh5 {[%clk 0:00:53]} 30. a5 {[%clk 0:00:20]}  Bg6 {[%clk 0:00:43]} 31. a6 {[%clk 0:00:19]}  Bf5 {[%clk 0:00:42]} 32. a7 {[%clk 0:00:14]}  Bh3 {[%clk 0:00:41]} 33. e3 {[%clk 0:00:13]}  g6 {[%clk 0:00:32]} 34. Qe7 {[%clk 0:00:12]}  Kg7 {[%clk 0:00:27]} 35. Rb1 {[%clk 0:00:10]}  Bxg2 {[%clk 0:00:16]} 36. Rxg2 {[%clk 0:00:11]}  Qxf3 {[%clk 0:00:16]} 37. Qg5 {[%clk 0:00:11]}  Qf6 {[%clk 0:00:15]} 38. Qxf6+ {[%clk 0:00:06]}  Kxf6 {[%clk 0:00:16]} 39. Rb7 {[%clk 0:00:07]}  Ra8 {[%clk 0:00:15]} 40. c5 {[%clk 0:00:07]}  e5 {[%clk 0:00:14]} 41. Rgb2 {[%clk 0:00:06]}  Kf5 {[%clk 0:00:11]} 42. R2b6 {[%clk 0:00:06]}  Ke4 {[%clk 0:00:10]} 43. Rxc6 {[%clk 0:00:06]}  Kxe3 {[%clk 0:00:08]} 44. Rd6 {[%clk 0:00:06]}  d4 {[%clk 0:00:07]} 45. c6 {[%clk 0:00:06]}  d3 {[%clk 0:00:06]} 46. Kf1 {[%clk 0:00:03]}  e4 {[%clk 0:00:05]} 47. c7 {[%clk 0:00:02]}  Rfc8 {[%clk 0:00:05]} 48. Rd8 {[%clk 0:00:03]}  d2 {[%clk 0:00:04]} 49. Rxc8 {[%clk 0:00:02]}  Rxc8 {[%clk 0:00:05]} 50. Rb1 {[%clk 0:00:02]}  Kd3 {[%clk 0:00:03]} 51. Kf2 {[%clk 0:00:01]}  e3+ {[%clk 0:00:03]} 52. Kf3 {[%clk 0:00:02]}  e2 {[%clk 0:00:04]} 53. Rb3+ {[%clk 0:00:02]}  Kc2 {[%clk 0:00:03]} 54. Rb8 {[%clk 0:00:03]}  d1=Q {[%clk 0:00:03]} 55. Rxc8 {[%clk 0:00:04]}  e1=Q+ {[%clk 0:00:03]} 56. Kf4 {[%clk 0:00:04]}  Qd4+ {[%clk 0:00:03]} 57. Kg5 {[%clk 0:00:05]}  Qee3# {[%clk 0:00:01]} 0-1


[Site "https://www.chess.com"]

[Event "Titled Tuesday Blitz April 26 Late 2022"]
[White "Donatti, Alvaro"]
[Black "Martic, Ivan"]
[WhiteFideId "3000303"]
[BlackFideId "929301"]
[WhiteElo "2138"]
[BlackElo "2317"]
[Result "0-1"]
[Round "01"]
[TimeControl "180+1"]
[Date "2022.04.26"]
[WhiteClock "0:00:01"]
[BlackClock "0:00:43"]

1. e4 {[%clk 0:02:58]}  c5 {[%clk 0:02:59]} 2. Nf3 {[%clk 0:02:56]}  Nf6 {[%clk 0:02:58]} 3. Nc3 {[%clk 0:02:54]}  d5 {[%clk 0:02:57]} 4. exd5 {[%clk 0:02:51]}  Nxd5 {[%clk 0:02:58]} 5. Bc4 {[%clk 0:02:50]}  Nxc3 {[%clk 0:02:56]} 6. bxc3 {[%clk 0:02:50]}  e6 {[%clk 0:02:56]} 7. O-O {[%clk 0:02:48]}  Be7 {[%clk 0:02:56]} 8. d4 {[%clk 0:02:48]}  O-O {[%clk 0:02:56]} 9. Bf4 {[%clk 0:02:42]}  Nc6 {[%clk 0:02:52]} 10. Ne5 {[%clk 0:02:32]}  Nxe5 {[%clk 0:02:45]} 11. Bxe5 {[%clk 0:02:31]}  Bd7 {[%clk 0:02:33]} 12. d5 {[%clk 0:02:26]}  exd5 {[%clk 0:02:29]} 13. Bxd5 {[%clk 0:02:26]}  Qc8 {[%clk 0:02:13]} 14. Qf3 {[%clk 0:02:13]}  Bc6 {[%clk 0:02:11]} 15. Bxc6 {[%clk 0:02:06]}  bxc6 {[%clk 0:02:07]} 16. Rfe1 {[%clk 0:01:50]}  Re8 {[%clk 0:02:07]} 17. Rad1 {[%clk 0:01:36]}  Bf8 {[%clk 0:02:05]} 18. c4 {[%clk 0:01:29]}  Qa6 {[%clk 0:01:58]} 19. Qf4 {[%clk 0:00:54]}  Qxa2 {[%clk 0:01:49]} 20. Rd7 {[%clk 0:00:47]}  f6 {[%clk 0:01:43]} 21. Ra1 {[%clk 0:00:39]}  Qxc2 {[%clk 0:01:33]} 22. Bd6 {[%clk 0:00:21]}  Re4 {[%clk 0:01:04]} 23. Qg3 {[%clk 0:00:13]}  Qd2 {[%clk 0:00:56]} 24. Rf1 {[%clk 0:00:09]}  Re1 {[%clk 0:00:52]} 25. Qg4 {[%clk 0:00:01]}  Qc1 {[%clk 0:00:43]} 0-1


[Site "https://www.chess.com"]

[Event "Titled Tuesday Blitz April 26 Late 2022"]
[White "Dubov, Daniil"]
[Black "Stevens, Christian"]
[WhiteFideId "24126055"]
[BlackFideId "2604450"]
[WhiteElo "2791"]
[BlackElo "2544"]
[Result "1-0"]
[Round "01"]
[TimeControl "180+1"]
[Date "2022.04.26"]
[WhiteClock "0:01:03"]
[BlackClock "0:00:01"]

1. d4 {[%clk 0:03:00]}  Nf6 {[%clk 0:02:45]} 2. Nf3 {[%clk 0:03:01]}  d5 {[%clk 0:02:43]} 3. c4 {[%clk 0:03:01]}  dxc4 {[%clk 0:02:43]} 4. e3 {[%clk 0:03:00]}  e6 {[%clk 0:02:38]} 5. Bxc4 {[%clk 0:02:59]}  c5 {[%clk 0:02:39]} 6. Qe2 {[%clk 0:03:00]}  Nc6 {[%clk 0:02:37]} 7. O-O {[%clk 0:02:58]}  cxd4 {[%clk 0:02:36]} 8. Rd1 {[%clk 0:02:58]}  Be7 {[%clk 0:02:36]} 9. exd4 {[%clk 0:02:57]}  O-O {[%clk 0:02:35]} 10. Nc3 {[%clk 0:02:57]}  Nb4 {[%clk 0:02:34]} 11. Ne5 {[%clk 0:02:56]}  Nbd5 {[%clk 0:02:26]} 12. Rd3 {[%clk 0:02:56]}  Bd7 {[%clk 0:02:25]} 13. Rg3 {[%clk 0:02:55]}  Re8 {[%clk 0:01:53]} 14. Nxd7 {[%clk 0:02:52]}  Nxd7 {[%clk 0:01:35]} 15. Nxd5 {[%clk 0:02:39]}  exd5 {[%clk 0:01:32]} 16. Bxd5 {[%clk 0:02:40]}  Bd6 {[%clk 0:01:26]} 17. Re3 {[%clk 0:02:39]}  Nf6 {[%clk 0:01:03]} 18. Bf3 {[%clk 0:02:26]}  Qb6 {[%clk 0:00:54]} 19. Rxe8+ {[%clk 0:02:22]}  Rxe8 {[%clk 0:00:53]} 20. Be3 {[%clk 0:02:23]}  Bf4 {[%clk 0:00:48]} 21. Qd2 {[%clk 0:02:19]}  Bxe3 {[%clk 0:00:46]} 22. fxe3 {[%clk 0:02:18]}  g6 {[%clk 0:00:37]} 23. a3 {[%clk 0:02:15]}  Kg7 {[%clk 0:00:35]} 24. Re1 {[%clk 0:02:13]}  Rd8 {[%clk 0:00:29]} 25. Qc3 {[%clk 0:02:07]}  Rd7 {[%clk 0:00:22]} 26. h3 {[%clk 0:01:57]}  h5 {[%clk 0:00:21]} 27. b4 {[%clk 0:01:51]}  Qd6 {[%clk 0:00:20]} 28. Qb2 {[%clk 0:01:46]}  b6 {[%clk 0:00:11]} 29. d5 {[%clk 0:01:38]}  Re7 {[%clk 0:00:10]} 30. e4 {[%clk 0:01:37]}  Qe5 {[%clk 0:00:09]} 31. Qxe5 {[%clk 0:01:36]}  Rxe5 {[%clk 0:00:10]} 32. Kf2 {[%clk 0:01:37]}  Ne8 {[%clk 0:00:09]} 33. Ke3 {[%clk 0:01:28]}  Nd6 {[%clk 0:00:09]} 34. Kd4 {[%clk 0:01:28]}  Kf6 {[%clk 0:00:06]} 35. Rf1 {[%clk 0:01:22]}  Nb5+ {[%clk 0:00:04]} 36. Kd3 {[%clk 0:01:22]}  Nd6 {[%clk 0:00:04]} 37. Bxh5+ {[%clk 0:01:22]}  Ke7 {[%clk 0:00:04]} 38. Bf3 {[%clk 0:01:22]}  Kd7 {[%clk 0:00:03]} 39. h4 {[%clk 0:01:21]}  Ke7 {[%clk 0:00:03]} 40. Rh1 {[%clk 0:01:16]}  Kf6 {[%clk 0:00:01]} 41. g4 {[%clk 0:01:10]}  Re7 {[%clk 0:00:01]} 42. h5 {[%clk 0:01:08]}  Kg5 {[%clk 0:00:01]} 43. h6 {[%clk 0:01:03]}  Re8 {[%clk 0:00:01]} 44. h7 {[%clk 0:01:03]} 1-0


[Site "https://www.chess.com"]

[Event "Titled Tuesday Blitz April 26 Late 2022"]
[White "Fernandez Siles, Luis"]
[Black "Cabarkapa, Novak"]
[WhiteFideId "2209420"]
[BlackFideId "943746"]
[WhiteElo "2212"]
[BlackElo "2443"]
[Result "1-0"]
[Round "01"]
[TimeControl "180+1"]
[Date "2022.04.26"]
[WhiteClock "0:00:22"]
[BlackClock "0:00:02"]

1. d4 {[%clk 0:03:00]}  h5 {[%clk 0:02:59]} 2. e4 {[%clk 0:02:59]}  h4 {[%clk 0:02:59]} 3. h3 {[%clk 0:02:59]}  d5 {[%clk 0:03:00]} 4. exd5 {[%clk 0:02:57]}  Nf6 {[%clk 0:03:00]} 5. c4 {[%clk 0:02:55]}  e6 {[%clk 0:03:00]} 6. dxe6 {[%clk 0:02:54]}  Bxe6 {[%clk 0:03:00]} 7. Nc3 {[%clk 0:02:52]}  Bf5 {[%clk 0:02:44]} 8. Nf3 {[%clk 0:02:45]}  Nc6 {[%clk 0:02:43]} 9. a3 {[%clk 0:02:40]}  Bd6 {[%clk 0:02:28]} 10. Be3 {[%clk 0:02:32]}  Qe7 {[%clk 0:02:26]} 11. Be2 {[%clk 0:02:19]}  O-O-O {[%clk 0:02:25]} 12. Qa4 {[%clk 0:02:17]}  Qf8 {[%clk 0:02:09]} 13. d5 {[%clk 0:02:13]}  Nb8 {[%clk 0:02:09]} 14. Qxa7 {[%clk 0:02:07]}  Nfd7 {[%clk 0:01:57]} 15. Nb5 {[%clk 0:01:52]}  Bc5 {[%clk 0:01:54]} 16. Bxc5 {[%clk 0:01:47]}  Nxc5 {[%clk 0:01:52]} 17. O-O {[%clk 0:01:45]}  g5 {[%clk 0:01:34]} 18. Nfd4 {[%clk 0:01:44]}  Bg6 {[%clk 0:01:30]} 19. Qa5 {[%clk 0:01:32]}  Nba6 {[%clk 0:01:28]} 20. b4 {[%clk 0:01:27]}  b6 {[%clk 0:01:25]} 21. Na7+ {[%clk 0:01:23]}  Kb7 {[%clk 0:01:23]} 22. Qb5 {[%clk 0:01:01]}  Ne4 {[%clk 0:01:14]} 23. c5 {[%clk 0:00:36]}  Nb8 {[%clk 0:00:36]} 24. Nac6 {[%clk 0:00:36]}  Nc3 {[%clk 0:00:31]} 25. Qc4 {[%clk 0:00:33]}  Nxe2+ {[%clk 0:00:30]} 26. Qxe2 {[%clk 0:00:31]}  Rxd5 {[%clk 0:00:29]} 27. Qf3 {[%clk 0:00:30]}  Rxd4 {[%clk 0:00:12]} 28. Nxd4+ {[%clk 0:00:30]}  Kc8 {[%clk 0:00:12]} 29. cxb6 {[%clk 0:00:29]}  Qd6 {[%clk 0:00:12]} 30. Nf5 {[%clk 0:00:29]}  Qe6 {[%clk 0:00:07]} 31. b7+ {[%clk 0:00:29]}  Kd8 {[%clk 0:00:06]} 32. Rad1+ {[%clk 0:00:30]}  Nd7 {[%clk 0:00:04]} 33. Nd4 {[%clk 0:00:29]}  Qb6 {[%clk 0:00:04]} 34. Nc6+ {[%clk 0:00:30]}  Ke8 {[%clk 0:00:05]} 35. Rfe1+ {[%clk 0:00:30]}  Kf8 {[%clk 0:00:04]} 36. Rxd7 {[%clk 0:00:26]}  Kg7 {[%clk 0:00:04]} 37. b8=Q {[%clk 0:00:25]}  Rxb8 {[%clk 0:00:04]} 38. Nxb8 {[%clk 0:00:25]}  Qxb8 {[%clk 0:00:05]} 39. Qc3+ {[%clk 0:00:25]}  Kh6 {[%clk 0:00:05]} 40. Qxc7 {[%clk 0:00:25]}  Qg8 {[%clk 0:00:04]} 41. f4 {[%clk 0:00:24]}  g4 {[%clk 0:00:04]} 42. f5 {[%clk 0:00:24]}  g3 {[%clk 0:00:03]} 43. Qf4+ {[%clk 0:00:25]}  Kh7 {[%clk 0:00:02]} 44. fxg6+ {[%clk 0:00:25]}  Qxg6 {[%clk 0:00:01]} 45. Rxf7+ {[%clk 0:00:23]}  Kh8 {[%clk 0:00:01]} 46. Re8+ {[%clk 0:00:23]}  Qg8 {[%clk 0:00:02]} 47. Qh6# {[%clk 0:00:22]} 1-0


[Site "https://www.chess.com"]

[Event "Titled Tuesday Blitz April 26 Late 2022"]
[White "Gschnitzer, Adrian"]
[Black "Tristan, Leonardo"]
[WhiteFideId "1270337"]
[BlackFideId "113816"]
[WhiteElo "2294"]
[BlackElo "2404"]
[Result "0-1"]
[Round "01"]
[TimeControl "180+1"]
[Date "2022.04.26"]
[WhiteClock "0:00:11"]
[BlackClock "0:00:14"]

1. d4 {[%clk 0:02:59]}  d5 {[%clk 0:02:59]} 2. c4 {[%clk 0:02:59]}  e6 {[%clk 0:02:59]} 3. Nc3 {[%clk 0:02:58]}  a6 {[%clk 0:02:59]} 4. Nf3 {[%clk 0:02:56]}  dxc4 {[%clk 0:02:58]} 5. a4 {[%clk 0:02:55]}  Nc6 {[%clk 0:02:58]} 6. e4 {[%clk 0:02:53]}  Na5 {[%clk 0:02:58]} 7. Bf4 {[%clk 0:02:50]}  Nf6 {[%clk 0:02:57]} 8. Be2 {[%clk 0:02:47]}  Bb4 {[%clk 0:02:56]} 9. e5 {[%clk 0:02:46]}  Nd5 {[%clk 0:02:32]} 10. Bd2 {[%clk 0:02:44]}  Nb3 {[%clk 0:01:49]} 11. Rb1 {[%clk 0:02:36]}  Nxd2 {[%clk 0:01:43]} 12. Qxd2 {[%clk 0:02:33]}  b5 {[%clk 0:01:44]} 13. O-O {[%clk 0:02:32]}  Bb7 {[%clk 0:01:43]} 14. Qc2 {[%clk 0:02:27]}  Qd7 {[%clk 0:01:31]} 15. Ng5 {[%clk 0:02:22]}  h6 {[%clk 0:01:30]} 16. Nge4 {[%clk 0:02:22]}  Be7 {[%clk 0:01:28]} 17. Rfd1 {[%clk 0:02:09]}  O-O {[%clk 0:01:27]} 18. Bf3 {[%clk 0:01:57]}  Rfd8 {[%clk 0:01:26]} 19. b3 {[%clk 0:01:48]}  b4 {[%clk 0:01:15]} 20. Ne2 {[%clk 0:01:31]}  c3 {[%clk 0:01:15]} 21. N2g3 {[%clk 0:01:29]}  g6 {[%clk 0:01:09]} 22. Rbc1 {[%clk 0:01:04]}  a5 {[%clk 0:01:09]} 23. Rd3 {[%clk 0:01:00]}  Kg7 {[%clk 0:01:09]} 24. Ne2 {[%clk 0:00:53]}  Qe8 {[%clk 0:00:59]} 25. Bg4 {[%clk 0:00:53]}  h5 {[%clk 0:00:55]} 26. Bxh5 {[%clk 0:00:52]}  gxh5 {[%clk 0:00:49]} 27. Rg3+ {[%clk 0:00:53]}  Kf8 {[%clk 0:00:35]} 28. Ng5 {[%clk 0:00:53]}  Bxg5 {[%clk 0:00:34]} 29. Rxg5 {[%clk 0:00:54]}  Ke7 {[%clk 0:00:35]} 30. Rxh5 {[%clk 0:00:50]}  Qg8 {[%clk 0:00:34]} 31. Ng3 {[%clk 0:00:49]}  Nf4 {[%clk 0:00:32]} 32. Rh7 {[%clk 0:00:43]}  Rxd4 {[%clk 0:00:29]} 33. Re1 {[%clk 0:00:19]}  Rd2 {[%clk 0:00:26]} 34. Qb1 {[%clk 0:00:19]}  c2 {[%clk 0:00:15]} 35. Qc1 {[%clk 0:00:19]}  Rad8 {[%clk 0:00:15]} 36. Rh4 {[%clk 0:00:13]}  Rd1 {[%clk 0:00:13]} 37. Qxf4 {[%clk 0:00:10]}  Rxe1+ {[%clk 0:00:14]} 38. Nf1 {[%clk 0:00:11]}  Qxg2# {[%clk 0:00:14]} 0-1


[Site "https://www.chess.com"]

[Event "Titled Tuesday Blitz April 26 Late 2022"]
[White "Guzman Moneo, Alberto"]
[Black "Hardaway, Brewington"]
[WhiteFideId "2209616"]
[BlackFideId "30941849"]
[WhiteElo "2157"]
[BlackElo "1768"]
[Result "0-1"]
[Round "01"]
[TimeControl "180+1"]
[Date "2022.04.26"]
[WhiteClock "0:02:11"]
[BlackClock "0:02:35"]

1. e4 {[%clk 0:02:59]}  c5 {[%clk 0:02:59]} 2. Nc3 {[%clk 0:02:58]}  e6 {[%clk 0:02:58]} 3. g3 {[%clk 0:02:55]}  Nc6 {[%clk 0:02:56]} 4. Bg2 {[%clk 0:02:27]}  Nge7 {[%clk 0:02:54]} 5. Nge2 {[%clk 0:02:26]}  g6 {[%clk 0:02:52]} 6. d4 {[%clk 0:02:26]}  cxd4 {[%clk 0:02:51]} 7. Nxd4 {[%clk 0:02:27]}  Bg7 {[%clk 0:02:51]} 8. Ndb5 {[%clk 0:02:25]}  O-O {[%clk 0:02:50]} 9. Bf4 {[%clk 0:02:19]}  Qb6 {[%clk 0:02:41]} 10. Bc7 {[%clk 0:02:11]}  Bxc3+ {[%clk 0:02:35]} 0-1


[Site "https://www.chess.com"]

[Event "Titled Tuesday Blitz April 26 Late 2022"]
[White "Harshavardhan G B"]
[Black "Rengifo Blancas, Renzo Jhonathan"]
[WhiteFideId "25059009"]
[BlackFideId "3807185"]
[WhiteElo "1831"]
[BlackElo "2058"]
[Result "0-1"]
[Round "01"]
[TimeControl "180+1"]
[Date "2022.04.26"]
[WhiteClock "0:01:13"]
[BlackClock "0:00:12"]

1. Nf3 {[%clk 0:03:00]}  Nf6 {[%clk 0:02:58]} 2. d4 {[%clk 0:02:59]}  d5 {[%clk 0:02:58]} 3. c4 {[%clk 0:02:59]}  e6 {[%clk 0:02:59]} 4. g3 {[%clk 0:02:58]}  Bb4+ {[%clk 0:02:53]} 5. Bd2 {[%clk 0:02:57]}  Be7 {[%clk 0:02:51]} 6. Bg2 {[%clk 0:02:57]}  O-O {[%clk 0:02:52]} 7. O-O {[%clk 0:02:57]}  c5 {[%clk 0:02:49]} 8. cxd5 {[%clk 0:02:55]}  exd5 {[%clk 0:02:47]} 9. Nc3 {[%clk 0:02:55]}  Nc6 {[%clk 0:02:48]} 10. dxc5 {[%clk 0:02:55]}  Bxc5 {[%clk 0:02:45]} 11. Bg5 {[%clk 0:02:55]}  d4 {[%clk 0:02:46]} 12. Bxf6 {[%clk 0:02:54]}  Qxf6 {[%clk 0:02:47]} 13. Nd5 {[%clk 0:02:55]}  Qd8 {[%clk 0:02:46]} 14. Nd2 {[%clk 0:02:55]}  Be6 {[%clk 0:02:44]} 15. Nf4 {[%clk 0:02:55]}  Bg4 {[%clk 0:02:28]} 16. Rc1 {[%clk 0:02:53]}  Bb6 {[%clk 0:02:26]} 17. h3 {[%clk 0:02:45]}  Bf5 {[%clk 0:02:25]} 18. Nc4 {[%clk 0:02:43]}  Re8 {[%clk 0:02:18]} 19. Re1 {[%clk 0:02:39]}  Be4 {[%clk 0:02:14]} 20. Bxe4 {[%clk 0:02:35]}  Rxe4 {[%clk 0:02:13]} 21. Qd3 {[%clk 0:02:36]}  Re8 {[%clk 0:01:51]} 22. Red1 {[%clk 0:02:31]}  Ne5 {[%clk 0:01:47]} 23. Nxe5 {[%clk 0:02:31]}  Rxe5 {[%clk 0:01:46]} 24. Qc2 {[%clk 0:02:25]}  Qf6 {[%clk 0:01:13]} 25. e4 {[%clk 0:02:05]}  dxe3 {[%clk 0:01:02]} 26. Qc8+ {[%clk 0:02:03]}  Re8 {[%clk 0:01:02]} 27. Qxb7 {[%clk 0:02:01]}  exf2+ {[%clk 0:01:01]} 28. Kf1 {[%clk 0:01:58]}  g6 {[%clk 0:00:40]} 29. Nd5 {[%clk 0:01:55]}  Qxb2 {[%clk 0:00:38]} 30. Qa6 {[%clk 0:01:40]}  Qe5 {[%clk 0:00:29]} 31. Qd3 {[%clk 0:01:36]}  Rad8 {[%clk 0:00:27]} 32. Kg2 {[%clk 0:01:28]}  Kg7 {[%clk 0:00:17]} 33. Qf3 {[%clk 0:01:24]}  Qe4 {[%clk 0:00:14]} 34. Nxb6 {[%clk 0:01:18]}  Qxf3+ {[%clk 0:00:13]} 35. Kxf3 {[%clk 0:01:16]}  Rxd1 {[%clk 0:00:13]} 36. Rxd1 {[%clk 0:01:17]}  Re1 {[%clk 0:00:12]} 37. Kxf2 {[%clk 0:01:17]}  Rxd1 {[%clk 0:00:11]} 38. Nc4 {[%clk 0:01:14]}  Rc1 {[%clk 0:00:11]} 39. Ne3 {[%clk 0:01:13]}  Ra1 {[%clk 0:00:12]} 0-1


[Site "https://www.chess.com"]

[Event "Titled Tuesday Blitz April 26 Late 2022"]
[White "Hoffmann, Asa"]
[Black "Fier, Alexandr"]
[WhiteFideId "2001470"]
[BlackFideId "2107139"]
[WhiteElo "2117"]
[BlackElo "2571"]
[Result "0-1"]
[Round "01"]
[TimeControl "180+1"]
[Date "2022.04.26"]
[WhiteClock "0:01:22"]
[BlackClock "0:01:51"]

1. d4 {[%clk 0:02:51]}  Nf6 {[%clk 0:02:59]} 2. Bg5 {[%clk 0:02:47]}  Ne4 {[%clk 0:02:58]} 3. Bf4 {[%clk 0:02:47]}  g5 {[%clk 0:02:58]} 4. Bc1 {[%clk 0:02:46]}  g4 {[%clk 0:02:57]} 5. Nc3 {[%clk 0:02:44]}  Nxc3 {[%clk 0:02:56]} 6. bxc3 {[%clk 0:02:43]}  d5 {[%clk 0:02:57]} 7. c4 {[%clk 0:02:40]}  c6 {[%clk 0:02:57]} 8. e3 {[%clk 0:02:36]}  Bg7 {[%clk 0:02:55]} 9. cxd5 {[%clk 0:02:35]}  cxd5 {[%clk 0:02:55]} 10. c4 {[%clk 0:02:35]}  Nc6 {[%clk 0:02:54]} 11. Bd2 {[%clk 0:02:29]}  e5 {[%clk 0:02:54]} 12. dxe5 {[%clk 0:02:23]}  Bxe5 {[%clk 0:02:53]} 13. Rb1 {[%clk 0:02:16]}  d4 {[%clk 0:02:54]} 14. Rb5 {[%clk 0:02:08]}  O-O {[%clk 0:02:53]} 15. Qb1 {[%clk 0:01:53]}  a6 {[%clk 0:02:49]} 16. Rd5 {[%clk 0:01:51]}  Qf6 {[%clk 0:02:47]} 17. Bd3 {[%clk 0:01:50]}  Be6 {[%clk 0:02:34]} 18. Bxh7+ {[%clk 0:01:39]}  Kg7 {[%clk 0:02:34]} 19. Be4 {[%clk 0:01:38]}  dxe3 {[%clk 0:02:30]} 20. fxe3 {[%clk 0:01:33]}  Bxd5 {[%clk 0:02:15]} 21. cxd5 {[%clk 0:01:33]}  Ne7 {[%clk 0:02:10]} 22. Ne2 {[%clk 0:01:30]}  Ng6 {[%clk 0:02:03]} 23. g3 {[%clk 0:01:27]}  Rae8 {[%clk 0:02:01]} 24. Rf1 {[%clk 0:01:26]}  Qg5 {[%clk 0:01:59]} 25. Nf4 {[%clk 0:01:24]}  Bxf4 {[%clk 0:01:51]} 26. exf4 {[%clk 0:01:22]}  Qxd5 {[%clk 0:01:51]} 0-1


[Site "https://www.chess.com"]